bitfinex/quotes_BTCUSD_20251104
["timestamp","ask_amount","ask_price","bid_price","bid_amount"]
[1762273366888,0.58084613,102570.0,102560.0,0.2372478]
[1762273367113,0.24007064,102590.0,102560.0,0.04224]
[1762273367335,0.68606035,102580.0,102560.0,0.04224]
[1762273367558,0.58084613,102570.0,102560.0,0.04224]
[1762273367780,0.73861537,102570.0,102550.0,0.08851]
[1762273368012,0.58484613,102580.0,102560.0,0.002]
[1762273368237,0.58484613,102580.0,102560.0,0.19700219]
[1762273368469,0.003,102580.0,102570.0,0.29548878]
[1762273368700,0.003,102580.0,102570.0,0.47379456]
[1762273368930,0.03384965,102630.0,102600.0,0.20467835]
[1762273369188,0.61469578,102630.0,102590.0,0.2503193]
[1762273369442,0.09447,102620.0,102610.0,0.19491247]
[1762273369666,0.12331965,102630.0,102600.0,0.29272827]
[1762273369942,0.12331965,102630.0,102610.0,0.08913]
[1762273369943,0.01074422,102630.0,102610.0,0.08913]
[1762273370161,0.58084613,102630.0,102620.0,0.0168]
[1762273370387,0.24531537,102640.0,102620.0,0.0168]
[1762273370612,0.58284613,102630.0,102620.0,0.0168]
[1762273370838,0.002,102630.0,102620.0,0.21169378]
[1762273371065,0.00252923,102640.0,102620.0,0.30002378]
[1762273371293,0.00252923,102640.0,102620.0,0.32693662]
[1762273371542,0.58084613,102630.0,102610.0,0.02140057]
[1762273371755,0.58084613,102630.0,102620.0,4e-05]
[1762273371971,0.58084613,102630.0,102620.0,8e-05]
[1762273372444,0.007,102630.0,102620.0,0.28505378]
[1762273372718,0.007,102630.0,102620.0,0.0902]
[1762273372930,0.007,102630.0,102620.0,0.28509378]
[1762273373146,0.007,102630.0,102620.0,0.09024]
[1762273373366,0.007,102630.0,102620.0,0.28517378]
[1762273373581,0.007,102630.0,102620.0,0.28521378]
[1762273373803,0.009,102630.0,102620.0,0.28521378]
[1762273374031,0.009,102630.0,102620.0,0.28525378]
[1762273374244,0.33486965,102670.0,102630.0,0.53487479]
[1762273374465,0.28876981,102660.0,102630.0,0.13426]
[1762273374685,0.78539324,102650.0,102630.0,0.13426]
[1762273374901,0.82778324,102650.0,102630.0,0.23310428]
[1762273375115,0.78539324,102660.0,102640.0,0.04527]
[1762273375331,0.78539324,102660.0,102640.0,0.17698]
[1762273375545,0.24036033,102670.0,102640.0,0.38157814]
[1762273375546,0.83095324,102670.0,102640.0,0.38157814]
[1762273375766,0.83095324,102670.0,102650.0,0.19483578]
[1762273375976,1.02810326,102680.0,102650.0,0.09461]
[1762273376242,0.99093665,102670.0,102640.0,0.38527]
[1762273376458,0.99495539,102660.0,102640.0,0.04731]
[1762273376683,0.01474422,102660.0,102650.0,0.09603]
[1762273376896,0.004,102660.0,102650.0,0.14112]
[1762273377114,1.02810354,102680.0,102650.0,0.14118057]
[1762273377332,1.03010354,102680.0,102650.0,0.14618057]
[1762273377585,1.12354354,102680.0,102650.0,0.379575]
[1762273377788,1.12354354,102680.0,102650.0,0.18423929]
[1762273378001,0.78539324,102670.0,102650.0,0.37907405]
[1762273378212,0.002,102680.0,102670.0,0.1092]
[1762273378423,0.33670338,102700.0,102670.0,0.1092]
[1762273378642,0.19476149,102690.0,102670.0,0.12693458]
[1762273378863,0.78539324,102690.0,102670.0,0.1092]
[1762273379086,1.07365081,102710.0,102680.0,0.06393]
[1762273379311,0.19474199,102700.0,102680.0,0.06393]
[1762273379538,0.19474199,102700.0,102670.0,0.04527]
[1762273379539,0.20550931,102690.0,102670.0,0.04527]
[1762273379760,0.99090255,102690.0,102670.0,0.04527]
[1762273379983,0.98113676,102700.0,102680.0,0.04998]
[1762273380224,0.001,102700.0,102680.0,0.04998]
[1762273380443,0.9918796,102700.0,102670.0,0.04627]
[1762273380680,1.37665674,102690.0,102670.0,0.1423]
[1762273380893,0.3965,102690.0,102670.0,0.33709861]
[1762273381104,0.00098207,102680.0,102670.0,0.24206887]
[1762273381328,0.00098207,102680.0,102670.0,0.24106887]
[1762273381550,0.00094207,102680.0,102670.0,1.61319664]
[1762273381776,0.025,102730.0,102700.0,0.2044759]
[1762273381997,0.025,102730.0,102720.0,0.06393]
[1762273382207,0.025,102730.0,102720.0,0.07325]
[1762273382421,0.025,102730.0,102720.0,0.15938]
[1762273382656,0.025,102730.0,102720.0,0.37002204]
[1762273382866,0.025,102730.0,102720.0,0.175318]
[1762273383124,0.02548746,102730.0,102720.0,0.175318]
[1762273383345,0.23091677,102730.0,102710.0,0.04527]
[1762273383572,0.98009728,102720.0,102710.0,0.04527]
[1762273383795,0.78539324,102720.0,102710.0,0.04527]
[1762273383986,0.8128807,102730.0,102710.0,0.1413]
[1762273384250,0.20544826,102720.0,102700.0,0.04527]
[1762273384485,0.98011624,102710.0,102700.0,0.04527]
[1762273384717,0.19470404,102720.0,102700.0,0.04527]
[1762273384969,0.07896746,102730.0,102710.0,6e-05]
[1762273385225,0.23017528,102730.0,102710.0,6e-05]
[1762273385474,0.23017528,102730.0,102700.0,0.09075]
[1762273385475,0.78539324,102720.0,102700.0,0.09075]
[1762273385688,0.28864404,102720.0,102710.0,4e-05]
[1762273385911,0.28864404,102720.0,102710.0,8e-05]
[1762273386132,0.28958404,102720.0,102710.0,8e-05]
[1762273386360,0.28865404,102720.0,102710.0,0.00012]
[1762273386577,0.35016776,102720.0,102710.0,0.00012]
[1762273386801,0.33792004,102720.0,102710.0,0.00016]
[1762273387041,0.22217282,102730.0,102710.0,0.00016]
[1762273387270,1.00756606,102730.0,102710.0,0.10207]
[1762273387494,1.07497728,102720.0,102710.0,0.0002]
[1762273387790,0.37128632,102720.0,102710.0,0.0002]
[1762273387999,1.16166107,102720.0,102710.0,0.0002]
[1762273388212,1.20008482,102720.0,102710.0,0.0002]
[1762273388423,1.20008482,102720.0,102710.0,0.00986362]
[1762273388638,1.19608482,102720.0,102710.0,0.00986362]
[1762273388858,0.19481784,102660.0,102650.0,0.00016]
[1762273389116,1.06757275,102660.0,102650.0,0.00016]
[1762273389351,1.15274503,102660.0,102650.0,0.00016]
[1762273389586,0.78539324,102650.0,102610.0,0.21960612]
[1762273389828,0.98021114,102660.0,102640.0,0.04664]
[1762273390077,0.78539324,102660.0,102640.0,6.057e-05]
[1762273390321,0.98017861,102680.0,102650.0,0.04567]
[1762273390534,0.78539324,102660.0,102650.0,0.04567]
[1762273390959,0.19481784,102660.0,102650.0,0.04567]
[1762273391182,0.98021108,102660.0,102640.0,6.057e-05]
[1762273391399,0.28926968,102670.0,102650.0,0.001]
[1762273391649,0.20556206,102660.0,102640.0,6.057e-05]
[1762273391863,0.20956206,102660.0,102650.0,0.001]
[1762273392099,0.23500012,102660.0,102650.0,0.001]
[1762273392316,0.24276682,102650.0,102640.0,6.057e-05]
[1762273392536,1.08928006,102650.0,102640.0,6.057e-05]
[1762273392756,1.60585234,102650.0,102640.0,6.057e-05]
[1762273392982,0.19489378,102620.0,102610.0,0.00212877]
[1762273393200,0.78539324,102620.0,102610.0,0.00227496]
[1762273393425,1.02821702,102620.0,102610.0,0.00227496]
[1762273393872,1.12279308,102620.0,102610.0,0.00227496]
[1762273394092,0.98028702,102620.0,102610.0,0.00227496]
[1762273394314,1.02821702,102620.0,102610.0,0.00227496]
[1762273394777,1.12268702,102620.0,102610.0,0.00427496]
[1762273394985,1.1588693,102620.0,102610.0,0.00427496]
[1762273395193,1.4988693,102620.0,102610.0,0.00427496]
[1762273395474,1.59744536,102620.0,102610.0,0.00527496]
[1762273395692,0.19496943,102590.0,102560.0,0.19500717]
[1762273395908,0.78539324,102580.0,102560.0,0.20475765]
[1762273396124,0.78539324,102580.0,102560.0,0.23294765]
[1762273396342,0.98036451,102580.0,102550.0,0.15128248]
[1762273396567,0.78539324,102560.0,102540.0,0.16052686]
[1762273396842,0.78539324,102550.0,102540.0,8e-05]
[1762273397099,0.30364865,102570.0,102540.0,0.23306812]
[1762273397100,0.78539324,102570.0,102540.0,0.23306812]
[1762273397350,0.78539324,102560.0,102540.0,0.23306775]
[1762273397610,0.57884892,102560.0,102540.0,0.02827]
[1762273397816,0.78539324,102560.0,102540.0,0.25121168]
[1762273398033,0.98038258,102570.0,102540.0,0.05916643]
[1762273398226,0.002,102550.0,102540.0,0.25521226]
[1762273398473,0.002,102550.0,102540.0,0.25221226]
[1762273398689,0.78539324,102560.0,102540.0,0.03097643]
[1762273399129,0.35976045,102580.0,102540.0,0.16096251]
[1762273399355,0.78539324,102570.0,102550.0,0.1950253]
[1762273399566,0.98038425,102570.0,102540.0,0.22323506]
[1762273400017,0.002,102560.0,102550.0,0.23296745]
[1762273400238,0.002,102560.0,102550.0,0.20477745]
[1762273400704,0.78539324,102570.0,102550.0,0.20477745]
[1762273400921,0.002,102570.0,102550.0,0.26115745]
[1762273401136,0.002,102570.0,102560.0,0.2231978]
[1762273401361,0.04786,102590.0,102580.0,0.00073745]
[1762273401580,0.04786,102610.0,102580.0,0.23290728]
[1762273401803,0.83332324,102620.0,102590.0,0.25132944]
[1762273402020,1.12712763,102620.0,102590.0,0.02819]
[1762273402664,0.24282439,102620.0,102590.0,0.22314019]
[1762273402882,1.02821763,102620.0,102590.0,0.02819]
[1762273403099,0.98032501,102600.0,102570.0,0.19498878]
[1762273403313,0.78539324,102600.0,102580.0,0.19496829]
[1762273403523,0.78539324,102600.0,102580.0,0.001]
[1762273403524,0.003,102590.0,102580.0,0.001]
[1762273403969,0.79613746,102590.0,102570.0,0.19498818]
[1762273404185,0.78539324,102600.0,102590.0,0.004]
[1762273404407,0.1474,102610.0,102590.0,0.004]
[1762273404633,0.78539324,102610.0,102590.0,0.19495]
[1762273404858,0.35038516,102630.0,102600.0,0.12312177]
[1762273404859,0.04786,102630.0,102600.0,0.12312177]
[1762273405101,0.98033624,102640.0,102600.0,0.18924835]
[1762273405315,0.99003075,102630.0,102600.0,0.08457]
[1762273405576,0.003,102600.0,102590.0,0.07395]
[1762273405784,0.003,102600.0,102590.0,0.04152844]
[1762273406024,0.99106923,102600.0,102590.0,0.02819]
[1762273406229,0.98032501,102600.0,102590.0,0.02819]
[1762273406660,0.98032501,102600.0,102580.0,0.07395]
[1762273406910,0.78539324,102600.0,102590.0,0.001]
[1762273407143,0.98032501,102600.0,102590.0,0.001]
[1762273407380,0.98032501,102600.0,102580.0,0.02819]
[1762273407594,0.79339324,102600.0,102590.0,0.002]
[1762273407813,0.98832501,102600.0,102590.0,0.002]
[1762273408038,0.98932501,102600.0,102590.0,0.00214619]
[1762273408313,0.98032501,102600.0,102590.0,0.00014619]
[1762273408741,0.98132501,102600.0,102590.0,0.00014619]
[1762273408960,1.07490107,102600.0,102590.0,0.00014619]
[1762273409407,0.98032501,102600.0,102570.0,0.16126431]
[1762273409618,0.78839324,102600.0,102570.0,0.16175148]
[1762273409836,0.79339324,102600.0,102580.0,0.19596761]
[1762273410060,0.008,102600.0,102580.0,0.19596761]
[1762273410286,0.003,102600.0,102590.0,0.19495077]
[1762273410721,0.04576,102630.0,102600.0,0.20466367]
[1762273410944,0.78539324,102640.0,102610.0,0.20465802]
[1762273411181,1.07396649,102650.0,102620.0,0.19489357]
[1762273411409,0.83332324,102650.0,102620.0,0.20463825]
[1762273411652,1.12143322,102660.0,102630.0,0.19487429]
[1762273411865,1.07575322,102660.0,102630.0,0.20461802]
[1762273412319,0.00188265,102670.0,102640.0,0.20459811]
[1762273412542,0.001,102650.0,102640.0,0.1948558]
[1762273413634,0.78539324,102660.0,102630.0,0.13399606]
[1762273414057,0.78539324,102660.0,102640.0,0.19485495]
[1762273414275,0.78639324,102660.0,102630.0,0.13499606]
[1762273414729,0.003,102650.0,102640.0,0.1948558]
[1762273414958,0.98207481,102670.0,102640.0,0.20459859]
[1762273415181,0.003,102660.0,102650.0,0.19483481]
[1762273415418,0.004,102660.0,102650.0,0.724185]
[1762273415689,0.00188265,102670.0,102650.0,0.724185]
[1762273415690,0.00188265,102670.0,102660.0,0.53481784]
[1762273415921,0.78539324,102690.0,102660.0,0.54455873]
[1762273416169,0.78539324,102690.0,102670.0,0.04564]
[1762273416636,0.98015837,102690.0,102670.0,0.04564]
[1762273416886,0.98015837,102690.0,102650.0,0.20457665]
[1762273416887,0.19481184,102670.0,102640.0,0.19485552]
[1762273417103,0.19481184,102670.0,102640.0,0.2404558]
[1762273417104,0.004,102650.0,102640.0,0.2404558]
[1762273417316,0.19481184,102670.0,102640.0,0.25034315]
[1762273417317,0.19479957,102670.0,102640.0,0.25034315]
[1762273417526,0.19479957,102670.0,102640.0,0.04674616]
[1762273417527,0.006,102650.0,102640.0,0.04674616]
[1762273417943,0.006,102650.0,102640.0,0.24160196]
[1762273418148,0.1947822,102680.0,102650.0,0.20457866]
[1762273418383,0.78539324,102680.0,102650.0,0.20457866]
[1762273418591,0.78539324,102670.0,102640.0,0.25134475]
[1762273418832,0.78539324,102670.0,102650.0,0.19483667]
[1762273419025,0.78539324,102670.0,102650.0,0.20457851]
[1762273419654,0.98019441,102670.0,102640.0,0.59034125]
[1762273419871,0.78539324,102660.0,102640.0,0.58064097]
[1762273420082,0.19478024,102680.0,102640.0,0.59038376]
[1762273420294,0.98019245,102670.0,102640.0,1.09042376]
[1762273420505,0.98019245,102670.0,102650.0,0.001]
[1762273420963,0.78739324,102670.0,102640.0,1.09050376]
[1762273421187,0.19483682,102650.0,102640.0,0.50034616]
[1762273421409,1.09160006,102650.0,102640.0,0.50134616]
[1762273421617,1.02842006,102650.0,102640.0,0.50138616]
[1762273421833,1.12299612,102650.0,102640.0,0.50142616]
[1762273422078,1.28184612,102650.0,102640.0,0.50142616]
[1762273422531,1.3180284,102650.0,102640.0,0.50142616]
[1762273422754,1.3635484,102650.0,102640.0,0.50042616]
[1762273422966,1.6403684,102650.0,102640.0,0.50142616]
[1762273423187,1.6403684,102650.0,102640.0,0.50146616]
[1762273423615,1.6403684,102650.0,102640.0,0.50046616]
[1762273423825,0.19491277,102610.0,102600.0,0.00024577]
[1762273424037,0.98026601,102610.0,102600.0,0.00039187]
[1762273424476,0.78539324,102600.0,102580.0,0.04552]
[1762273424698,0.78539324,102590.0,102580.0,0.04566601]
[1762273425139,0.78539324,102590.0,102580.0,0.04804114]
[1762273425354,0.98032593,102600.0,102580.0,0.04804114]
[1762273425569,0.78539324,102600.0,102580.0,0.04566601]
[1762273425803,0.78539324,102600.0,102580.0,0.24063509]
[1762273426020,0.04819,102620.0,102580.0,0.20490346]
[1762273426240,0.79239324,102610.0,102590.0,0.20469829]
[1762273426492,0.78539324,102600.0,102580.0,0.20494004]
[1762273426704,0.79039324,102600.0,102590.0,0.19495077]
[1762273426923,0.008,102600.0,102580.0,0.20602004]
[1762273427155,0.79039324,102600.0,102580.0,0.20606004]
[1762273427367,0.98030723,102610.0,102580.0,0.20510004]
[1762273427588,0.012,102610.0,102590.0,0.19595072]
[1762273427802,0.012,102610.0,102590.0,0.24143014]
[1762273428020,0.012,102610.0,102600.0,0.68835797]
[1762273428881,0.012,102610.0,102600.0,0.4934262]
[1762273429110,0.005,102610.0,102590.0,0.24043003]
[1762273429318,0.005,102600.0,102590.0,0.25017756]
[1762273429524,0.005,102600.0,102590.0,0.24043077]
[1762273429971,0.78539324,102620.0,102600.0,4e-05]
[1762273430204,0.007,102610.0,102600.0,0.00104]
[1762273430421,0.01,102610.0,102600.0,0.00108]
[1762273430633,0.78539324,102620.0,102600.0,0.00012]
[1762273430849,0.19485658,102640.0,102610.0,0.2046584]
[1762273431115,0.2491,102620.0,102610.0,0.2500584]
[1762273431337,0.2491,102620.0,102610.0,0.0454]
[1762273431557,0.2491,102620.0,102610.0,0.24031277]
[1762273432628,0.2541,102620.0,102610.0,0.0454]
[1762273432910,0.2541,102620.0,102610.0,0.24031277]
[1762273433182,0.2501,102620.0,102610.0,0.58031277]
[1762273433403,0.78544698,102660.0,102630.0,0.20460413]
[1762273433656,0.57982784,102660.0,102640.0,0.20459782]
[1762273433898,0.00024569,102670.0,102650.0,0.19483682]
[1762273433899,0.58007353,102670.0,102650.0,0.19483682]
[1762273434135,0.57982784,102660.0,102630.0,0.44996413]
[1762273434348,0.57982784,102660.0,102640.0,0.19485432]
[1762273434579,0.57982784,102660.0,102640.0,0.19500033]
[1762273434803,0.57982784,102660.0,102640.0,0.20474312]
[1762273435057,0.57982784,102660.0,102640.0,0.0098888]
[1762273435272,0.19504688,102670.0,102640.0,0.00014601]
[1762273435497,0.57982784,102660.0,102640.0,0.1949977]
[1762273435920,0.57982784,102650.0,102640.0,0.00014601]
[1762273436146,0.19482027,102660.0,102640.0,0.00014601]
[1762273436359,0.19504688,102670.0,102640.0,0.19504091]
[1762273436563,0.57982784,102660.0,102640.0,0.2057837]
[1762273436773,0.57982784,102660.0,102640.0,0.2058237]
[1762273436982,0.58707353,102670.0,102650.0,0.19483682]
[1762273437199,0.77687276,102670.0,102640.0,0.2048637]
[1762273437424,0.57982784,102660.0,102650.0,0.19483479]
[1762273437630,0.005,102660.0,102650.0,0.19483682]
[1762273438700,0.57982784,102660.0,102640.0,0.00034601]
[1762273438915,0.77466466,102650.0,102640.0,0.00034601]
[1762273439122,0.57982784,102650.0,102640.0,0.00034601]
[1762273439331,0.57982784,102660.0,102640.0,0.19520181]
[1762273439549,0.19681784,102660.0,102650.0,4e-05]
[1762273439762,0.19481784,102660.0,102650.0,4e-05]
[1762273439984,0.21056206,102660.0,102650.0,0.00108]
[1762273440193,0.20181784,102660.0,102650.0,0.00108]
[1762273440417,0.19681784,102660.0,102650.0,0.00012]
[1762273440639,0.99640397,102660.0,102650.0,0.00012]
[1762273440866,1.08494625,102660.0,102650.0,0.00116]
[1762273441358,0.2310191,102650.0,102640.0,0.00034601]
[1762273441576,0.57982784,102600.0,102570.0,0.20466628]
[1762273441797,0.57982784,102600.0,102580.0,0.35365795]
[1762273442018,0.77475961,102600.0,102580.0,0.00064]
[1762273442264,0.57982784,102590.0,102580.0,0.00064]
[1762273442480,0.77477861,102590.0,102580.0,0.00064]
[1762273442729,0.19496977,102580.0,102570.0,0.00048717]
[1762273442966,0.86631761,102580.0,102570.0,0.00048717]
[1762273443427,0.96089367,102580.0,102570.0,0.00048717]
[1762273443656,0.38102583,102580.0,102570.0,0.00048717]
[1762273443881,0.96085367,102580.0,102570.0,0.00048717]
[1762273444107,0.96081367,102580.0,102570.0,0.00048717]
[1762273444374,1.00499595,102580.0,102570.0,0.00148717]
[1762273444586,0.42512811,102580.0,102570.0,0.00148717]
[1762273444799,0.42508811,102580.0,102570.0,0.00148717]
[1762273445254,0.42804811,102580.0,102570.0,0.00148717]
[1762273445480,1.00483595,102580.0,102570.0,0.00148717]
[1762273445695,0.99683595,102580.0,102570.0,0.00048717]
[1762273445905,0.41700811,102580.0,102570.0,0.00048717]
[1762273446117,1.01283595,102580.0,102570.0,0.00248717]
[1762273446391,1.01279595,102580.0,102570.0,0.00248717]
[1762273446630,1.00779595,102580.0,102570.0,0.00248717]
[1762273447053,0.99679595,102580.0,102570.0,0.00548717]
[1762273447489,0.99779595,102580.0,102570.0,0.01048717]
[1762273447939,1.33779595,102580.0,102570.0,0.01122473]
[1762273448160,0.19503612,102550.0,102520.0,0.1950804]
[1762273448386,0.58031489,102550.0,102530.0,0.19506463]
[1762273448631,0.00048705,102550.0,102530.0,0.19569463]
[1762273448875,0.00048705,102550.0,102540.0,0.19567583]
[1762273449115,0.00048705,102550.0,102540.0,0.19630583]
[1762273449551,0.00348705,102550.0,102540.0,0.35130167]
[1762273449763,0.00348705,102550.0,102540.0,0.55130167]
[1762273450193,0.00048705,102550.0,102540.0,0.55130167]
[1762273450412,0.00148705,102550.0,102540.0,0.55230167]
[1762273450624,0.00448705,102550.0,102540.0,0.55230167]
[1762273450842,0.00448705,102550.0,102540.0,0.35230167]
[1762273451062,0.00448705,102550.0,102540.0,0.35167167]
[1762273451284,0.00448705,102550.0,102540.0,0.15725584]
[1762273451512,0.00348705,102550.0,102540.0,0.19730583]
[1762273451725,0.00048705,102550.0,102540.0,0.19634583]
[1762273451941,0.00448705,102550.0,102540.0,0.19571583]
[1762273452154,0.00448705,102550.0,102540.0,4e-05]
[1762273452362,0.00848705,102550.0,102540.0,0.00208]
[1762273452589,0.00848705,102550.0,102540.0,0.19775583]
[1762273452846,0.00048705,102550.0,102540.0,0.19642583]
[1762273453071,0.01648705,102550.0,102540.0,0.19846583]
[1762273453285,0.59631489,102550.0,102540.0,0.0022]
[1762273453538,0.7913417,102550.0,102540.0,0.00224]
[1762273453746,0.9480217,102550.0,102540.0,0.00228]
[1762273453957,1.04259776,102550.0,102540.0,0.00305787]
[1762273454143,1.04259776,102550.0,102540.0,0.00309787]
[1762273454817,1.03659776,102550.0,102540.0,0.00309787]
[1762273455036,1.03759776,102550.0,102540.0,0.00209787]
[1762273455243,0.9430217,102550.0,102540.0,0.00209787]
[1762273455473,0.9550217,102550.0,102540.0,0.00409787]
[1762273455715,0.8635017,102550.0,102540.0,0.00409787]
[1762273455916,0.86301465,102550.0,102540.0,0.00409787]
[1762273456366,0.95707465,102550.0,102540.0,0.00409787]
[1762273456619,0.60282784,102550.0,102540.0,0.00409787]
[1762273456854,0.60282784,102550.0,102540.0,0.00359787]
[1762273457282,0.60282784,102550.0,102540.0,0.1986437]
[1762273457527,0.023,102550.0,102540.0,0.00359787]
[1762273457747,0.023,102550.0,102540.0,0.1992737]
[1762273457965,0.023,102550.0,102540.0,0.19921836]
[1762273458628,0.023,102550.0,102540.0,0.19984836]
[1762273458853,0.023,102550.0,102540.0,0.24462836]
[1762273459077,0.023,102550.0,102540.0,0.8244562]
[1762273459319,0.023,102550.0,102540.0,0.04895253]
[1762273459531,0.011,102550.0,102540.0,0.04695253]
[1762273459738,0.006,102550.0,102540.0,0.04795253]
[1762273460173,0.008,102550.0,102540.0,0.24299836]
[1762273460412,0.20302681,102550.0,102540.0,0.04795253]
[1762273460647,0.008,102550.0,102540.0,0.04732253]
[1762273461059,0.20302681,102550.0,102540.0,0.04795253]
[1762273461262,0.006,102550.0,102540.0,0.04795253]
[1762273461716,0.006,102550.0,102540.0,0.04732253]
[1762273462132,0.01,102550.0,102540.0,0.04732253]
[1762273462391,0.01,102550.0,102540.0,0.24299836]
[1762273462609,0.01,102550.0,102540.0,0.24362836]
[1762273462836,0.01,102550.0,102540.0,0.39968249]
[1762273464122,0.01,102550.0,102540.0,0.39972249]
[1762273464335,0.01,102550.0,102540.0,0.20467666]
[1762273464557,0.20502681,102550.0,102540.0,0.04803253]
[1762273464758,0.58982784,102550.0,102540.0,0.04740253]
[1762273464965,0.2591,102550.0,102540.0,0.04807253]
[1762273465174,0.2591,102550.0,102540.0,0.04748253]
[1762273465385,0.2591,102550.0,102540.0,0.04815253]
[1762273465797,0.2591,102550.0,102540.0,0.04756253]
[1762273466002,0.45412681,102550.0,102540.0,0.04756253]
[1762273466210,0.45412681,102550.0,102540.0,0.00228253]
[1762273466416,0.2591,102550.0,102540.0,0.00232253]
[1762273466628,0.45412681,102550.0,102540.0,0.00232253]
[1762273466837,0.45412681,102550.0,102540.0,0.00236253]
[1762273467048,0.59676649,102550.0,102540.0,0.00236253]
[1762273467253,0.69082649,102550.0,102540.0,0.00240253]
[1762273467916,0.2491,102550.0,102540.0,0.00103253]
[1762273468125,1.08728465,102550.0,102540.0,0.00040253]
[1762273468337,1.19934465,102550.0,102540.0,0.00340253]
[1762273468576,1.19934465,102550.0,102540.0,0.00331617]
[1762273468779,1.18934465,102550.0,102540.0,0.00131617]
[1762273469243,1.10128465,102550.0,102540.0,0.00231617]
[1762273469690,1.19534465,102550.0,102540.0,0.00231617]
[1762273469918,0.00975229,102540.0,102510.0,0.33993494]
[1762273470137,0.82099172,102520.0,102510.0,0.33993494]
[1762273470350,0.88432172,102520.0,102510.0,0.33993494]
[1762273470766,0.97838172,102520.0,102510.0,0.33993494]
[1762273470978,0.97838172,102520.0,102510.0,0.33793494]
[1762273471401,1.07295778,102520.0,102510.0,0.33793494]
[1762273471606,1.07495778,102520.0,102510.0,0.33893494]
[1762273471865,0.98238172,102520.0,102510.0,0.33893494]
[1762273472095,0.98038172,102520.0,102510.0,0.33893494]
[1762273472308,0.98438172,102520.0,102510.0,0.33893494]
[1762273472521,0.63190784,102520.0,102510.0,0.33893494]
[1762273472730,0.006,102520.0,102510.0,0.53403785]
[1762273473173,0.006,102520.0,102510.0,0.53993785]
[1762273473629,0.006,102520.0,102510.0,1.2669572]
[1762273473851,0.006,102520.0,102510.0,1.2689572]
[1762273473852,0.015,102520.0,102510.0,1.2689572]
[1762273474287,0.34970114,102590.0,102540.0,0.2047799]
[1762273474512,0.78554248,102580.0,102550.0,0.19797561]
[1762273474724,0.78554248,102580.0,102550.0,0.21067695]
[1762273475152,0.7748223,102570.0,102550.0,0.00295]
[1762273475372,0.57982784,102560.0,102540.0,0.04512862]
[1762273475621,0.81995564,102560.0,102540.0,0.05412862]
[1762273475834,0.77485465,102550.0,102540.0,0.00904862]
[1762273476050,0.2401278,102560.0,102540.0,0.00904862]
[1762273476273,0.57982784,102550.0,102540.0,0.00904862]
[1762273476974,0.24012796,102560.0,102540.0,0.00299862]
[1762273477177,0.64406784,102550.0,102540.0,4.862e-05]
[1762273477387,0.57982784,102550.0,102540.0,4.862e-05]
[1762273477809,0.57982784,102550.0,102540.0,0.19509445]
[1762273478235,0.57982784,102550.0,102540.0,0.19709445]
[1762273478460,0.004,102550.0,102540.0,0.20104445]
[1762273478719,0.84309465,102550.0,102540.0,0.00104862]
[1762273478920,0.94284465,102550.0,102540.0,0.00204862]
[1762273479138,1.03742071,102550.0,102540.0,0.00204862]
[1762273480200,0.84409465,102550.0,102540.0,0.00204862]
[1762273480413,0.77985465,102550.0,102540.0,0.00204862]
[1762273480629,0.20002681,102550.0,102540.0,0.00204862]
[1762273483050,0.005,102550.0,102540.0,0.00204862]
[1762273483765,0.005,102550.0,102540.0,0.20299445]
[1762273484880,0.005,102550.0,102540.0,0.35027065]
[1762273485305,0.00090139,102560.0,102550.0,0.19502681]
[1762273485517,0.00090139,102560.0,102550.0,0.24596681]
[1762273485728,0.00090139,102560.0,102550.0,0.39324301]
[1762273486451,0.58072923,102560.0,102540.0,0.00504862]
[1762273486670,0.00090139,102560.0,102550.0,0.00295]
[1762273486891,0.08122228,102600.0,102570.0,0.00974943]
[1762273487153,0.19493224,102600.0,102570.0,0.2517838]
[1762273487381,0.82091178,102610.0,102570.0,0.2538238]
[1762273487608,0.62599784,102610.0,102590.0,0.19495071]
[1762273487830,0.77475969,102600.0,102570.0,0.04912]
[1762273488061,0.82289916,102590.0,102570.0,0.04504]
[1762273488286,0.62794784,102590.0,102570.0,0.04504]
[1762273488505,0.62599784,102610.0,102590.0,0.19699035]
[1762273488739,0.58082784,102610.0,102590.0,0.19699035]
[1762273488957,0.77474155,102610.0,102590.0,0.19703897]
[1762273489205,0.57982784,102610.0,102590.0,0.19703812]
[1762273489470,0.57982784,102610.0,102590.0,0.19907812]
[1762273489686,0.001,102600.0,102590.0,0.19803812]
[1762273490120,0.001,102600.0,102590.0,0.24511812]
[1762273490348,0.001,102600.0,102590.0,0.40172342]
[1762273490580,0.001,102600.0,102590.0,0.74072342]
[1762273490797,0.001,102600.0,102590.0,0.94072342]
[1762273491005,0.77470276,102630.0,102600.0,0.19492774]
[1762273491221,0.57982784,102630.0,102610.0,0.19491258]
[1762273491432,0.29968105,102640.0,102620.0,0.00204]
[1762273491433,0.78502889,102640.0,102620.0,0.00204]
[1762273491650,0.78502889,102640.0,102620.0,0.19693369]
[1762273491651,0.01034452,102640.0,102620.0,0.19693369]
[1762273491874,0.01034452,102640.0,102630.0,0.00204]
[1762273491875,0.59017236,102640.0,102630.0,0.00204]
[1762273492139,0.82278534,102650.0,102630.0,0.00204]
[1762273492361,0.19487492,102630.0,102610.0,0.04504]
[1762273492576,0.57982784,102630.0,102610.0,0.23995196]
[1762273492796,0.77470409,102630.0,102610.0,0.04504]
[1762273493021,0.57982784,102630.0,102610.0,0.24969691]
[1762273493251,0.77470434,102630.0,102610.0,0.04508862]
[1762273493461,0.57982784,102630.0,102610.0,0.04508862]
[1762273493689,0.77570268,102630.0,102610.0,0.04608862]
[1762273493899,0.19489378,102620.0,102610.0,0.04608862]
[1762273494086,0.19489378,102620.0,102610.0,0.04708862]
[1762273494297,0.58282784,102630.0,102610.0,0.04912862]
[1762273494506,0.77812227,102630.0,102610.0,0.04912862]
[1762273494732,0.19588063,102630.0,102610.0,0.04812862]
[1762273494982,0.19489378,102620.0,102610.0,0.00104862]
[1762273495195,1.14946043,102620.0,102610.0,0.00204862]
[1762273495414,0.25674378,102620.0,102610.0,4.862e-05]
[1762273495634,0.24950422,102620.0,102610.0,4.862e-05]
[1762273495845,1.56850893,102620.0,102610.0,0.00204862]
[1762273496256,1.56750893,102620.0,102610.0,0.00104862]
[1762273496682,1.57250893,102620.0,102610.0,0.00204862]
[1762273497139,1.56750893,102620.0,102610.0,4.862e-05]
[1762273497327,1.62911621,102620.0,102610.0,0.00104862]
[1762273497543,1.63011621,102620.0,102610.0,0.00404862]
[1762273497748,1.62511621,102620.0,102610.0,0.00304862]
[1762273497954,1.62503006,102620.0,102610.0,0.00404862]
[1762273498166,1.72108067,102620.0,102610.0,0.00404862]
[1762273498603,1.62650461,102620.0,102610.0,0.00404862]